bitfinex/quotes_BTCUSD_20251226
["timestamp","ask_amount","ask_price","bid_price","bid_amount"]
[1766733802844,4.46682301,89500.0,89499.0,1e-08]
[1766733803000,4.31099591,89500.0,89499.0,1e-08]
[1766733803201,3.96429493,89500.0,89499.0,1e-08]
[1766733803428,2.96300346,89500.0,89498.0,0.03510637]
[1766733803629,0.000549,89498.0,89496.0,0.02241368]
[1766733803835,0.70658058,89500.0,89499.0,0.05586654]
[1766733804006,0.01116819,89540.0,89515.0,0.0558562]
[1766733804007,0.03522494,89526.0,89515.0,0.0558562]
[1766733804221,0.0353325,89526.0,89521.0,0.03575439]
[1766733804431,0.0353325,89526.0,89511.0,0.07234341]
[1766733804628,0.05585051,89525.0,89508.0,0.01128]
[1766733804797,0.01117031,89523.0,89508.0,0.01128]
[1766733804992,0.01117093,89518.0,89494.0,0.01117393]
[1766733805283,0.0466125,89526.0,89495.0,0.01128]
[1766733805284,0.07228,89509.0,89495.0,0.01128]
[1766733805491,0.01117243,89506.0,89495.0,0.01128]
[1766733805681,0.0111728,89503.0,89495.0,0.01128]
[1766733805893,0.08345256,89505.0,89484.0,0.05587558]
[1766733806205,0.05586853,89496.0,89483.0,0.01715535]
[1766733806348,0.01117343,89498.0,89481.0,0.02241555]
[1766733806551,0.01117256,89505.0,89487.0,0.0111748]
[1766733806781,0.01117256,89505.0,89482.0,0.01239753]
[1766733806782,0.01128,89505.0,89491.0,0.0111743]
[1766733807111,0.01128,89505.0,89499.0,0.00583454]
[1766733807239,0.02245256,89505.0,89499.0,0.00583454]
[1766733807439,0.00290631,89500.0,89499.0,0.00583454]
[1766733808054,0.07518631,89500.0,89499.0,4.54e-06]
[1766733808796,0.07518631,89500.0,89473.0,0.0670589]
[1766733808797,0.07228,89491.0,89473.0,0.0670589]
[1766733809028,0.07228,89491.0,89476.0,0.01117618]
[1766733809149,0.07228,89491.0,89477.0,0.01117605]
[1766733809351,0.07228,89491.0,89475.0,0.0111763]
[1766733809666,0.07228,89491.0,89473.0,0.0783389]
[1766733809667,0.01117455,89489.0,89474.0,0.01117643]
[1766733809856,0.0834543,89491.0,89473.0,0.01128]
[1766733810055,0.01117455,89489.0,89474.0,0.01117643]
[1766733810256,0.01117505,89485.0,89473.0,0.01128]
[1766733810628,1.3e-07,89488.0,89473.0,0.02245655]
[1766733810770,1.3e-07,89488.0,89473.0,0.01128]
[1766733810966,0.0111748,89487.0,89473.0,0.01128]
[1766733811395,0.01117493,89486.0,89473.0,0.01128]
[1766733811592,0.01117505,89485.0,89473.0,0.01128]
[1766733811956,0.0111748,89487.0,89473.0,0.02245655]
[1766733812487,0.05962961,89489.0,89473.0,0.02245655]
[1766733812671,0.0553807,89489.0,89473.0,0.02245655]
[1766733812871,0.01124,89490.0,89476.0,0.01117618]
[1766733813073,0.01124,89490.0,89478.0,0.01117593]
[1766733813430,0.02241443,89490.0,89474.0,0.01117643]
[1766733813627,0.01117455,89489.0,89475.0,0.0111763]
[1766733814067,0.01117455,89489.0,89474.0,0.01117643]
[1766733814280,0.01124,89490.0,89474.0,0.06705827]
[1766733814545,0.00221056,89477.0,89473.0,0.02245655]
[1766733814691,0.02241443,89490.0,89473.0,0.02245655]
[1766733814692,0.0111748,89487.0,89473.0,0.02245655]
[1766733814892,0.01117455,89489.0,89473.0,0.02245655]
[1766733815131,0.02241443,89490.0,89473.0,0.02245655]
[1766733815132,0.01124,89490.0,89475.0,0.0111763]
[1766733815341,0.01124,89496.0,89490.0,0.00055]
[1766733815510,0.01124,89496.0,89486.0,0.02458283]
[1766733815711,0.01124,89496.0,89486.0,0.02494136]
[1766733815954,0.07228,89504.0,89486.0,0.01376643]
[1766733816257,0.01124,89508.0,89502.0,0.01117293]
[1766733816432,0.07228,89513.0,89500.0,0.02458108]
[1766733816640,0.02241168,89512.0,89500.0,0.0134079]
[1766733816815,0.01124,89512.0,89500.0,0.0134079]
[1766733817015,0.01124,89512.0,89498.0,0.01117343]
[1766733817016,0.07228,89515.0,89507.0,0.01117231]
[1766733817551,0.07228,89515.0,89510.0,0.01117193]
[1766733817771,0.07228,89515.0,89508.0,0.01117218]
[1766733817772,0.07228,89523.0,89512.0,0.01117168]
[1766733817965,0.07228,89523.0,89510.0,0.01117193]
[1766733818161,0.07228,89523.0,89509.0,0.01117206]
[1766733818311,0.08345031,89523.0,89508.0,0.01117218]
[1766733818513,0.08345031,89523.0,89503.0,0.0111728]
[1766733818514,0.01117081,89519.0,89503.0,0.0111728]
[1766733818822,0.01124,89518.0,89505.0,0.01117256]
[1766733819108,0.01124,89518.0,89508.0,0.01117218]
[1766733819306,0.01124,89518.0,89506.0,0.01117243]
[1766733819483,0.08352,89518.0,89506.0,0.01117243]
[1766733819688,0.000549,89506.0,89503.0,0.0111728]
[1766733820203,0.07228,89511.0,89499.0,0.0111733]
[1766733820345,0.07228,89511.0,89500.0,0.01117318]
[1766733820554,0.07228,89525.0,89511.0,0.00055]
[1766733820774,0.07228,89513.0,89498.0,0.02241343]
[1766733820971,0.07228,89511.0,89498.0,0.01124]
[1766733821170,0.07228,89505.0,89493.0,0.01124]
[1766733821330,0.07228,89505.0,89493.0,0.02241405]
[1766733821735,0.07228,89505.0,89494.0,0.01117393]
[1766733821969,0.07228,89502.0,89488.0,0.02241468]
[1766733822184,0.07228,89502.0,89489.0,0.01117455]
[1766733822343,0.07228,89499.0,89485.0,0.06711506]
[1766733822544,0.07228,89499.0,89486.0,0.01153346]
[1766733822748,0.07228,89499.0,89486.0,0.00035853]
[1766733822946,0.07228,89499.0,89488.0,0.01117468]
[1766733823332,0.07228,89499.0,89487.0,0.0111748]
[1766733823531,0.07228,89499.0,89490.0,0.0670464]
[1766733823785,0.07228,89523.0,89506.0,0.01117243]
[1766733823936,0.07424,89521.0,89505.0,0.01117256]
[1766733824147,0.07424,89521.0,89504.0,0.01117268]
[1766733824148,0.01117081,89519.0,89504.0,0.01117268]
[1766733824344,0.07424,89518.0,89504.0,0.01117268]
[1766733824918,0.07424,89518.0,89506.0,0.01117243]
[1766733825119,0.07424,89518.0,89507.0,0.01117231]
[1766733825605,0.01117056,89521.0,89504.0,0.06703551]
[1766733825606,0.0009376,89508.0,89504.0,0.01117268]
[1766733825804,0.07424,89509.0,89504.0,0.01117268]
[1766733826003,0.00084685,89505.0,89504.0,0.01117268]
[1766733826167,0.07424,89516.0,89507.0,0.01117231]
[1766733826361,0.07424,89516.0,89508.0,0.01117218]
[1766733826576,0.07424,89516.0,89511.0,0.01117181]
[1766733826747,0.07424,89516.0,89512.0,0.01117168]
[1766733827208,0.07424,89516.0,89505.0,0.01117256]
[1766733827368,0.07424,89516.0,89506.0,0.01117243]
[1766733827571,0.07424,89516.0,89505.0,0.01117256]
[1766733827773,0.07424,89516.0,89504.0,0.01117268]
[1766733827976,0.07424,89516.0,89505.0,0.01117256]
[1766733828472,0.07424,89516.0,89503.0,0.01124]
[1766733828812,0.06919,89525.0,89519.0,0.01117081]
[1766733829018,0.01124,89523.0,89518.0,0.01117093]
[1766733829316,0.01124,89523.0,89516.0,0.01117118]
[1766733829474,0.01124,89523.0,89515.0,0.01117131]
[1766733830062,0.01134754,89523.0,89515.0,0.01117131]
[1766733830262,0.01134754,89523.0,89517.0,0.01117106]
[1766733830470,0.01134754,89523.0,89518.0,0.01117093]
[1766733830672,0.01134754,89523.0,89520.0,0.01117068]
[1766733830889,0.01134754,89523.0,89519.0,0.01117081]
[1766733831090,0.01134754,89523.0,89520.0,0.01117068]
[1766733831290,0.00010754,89523.0,89520.0,0.01117068]
[1766733831469,0.00010754,89523.0,89519.0,0.01117081]
[1766733831668,0.00010754,89523.0,89517.0,0.01117106]
[1766733832025,0.0003931,89518.0,89517.0,0.01117106]
[1766733832236,0.000549,89517.0,89511.0,0.02241181]
[1766733832727,0.00010754,89523.0,89513.0,0.01117156]
[1766733832890,0.00010754,89523.0,89511.0,0.02241181]
[1766733833289,0.000549,89511.0,89505.0,0.01124]
[1766733833516,0.000549,89511.0,89503.0,0.01124]
[1766733833517,0.00055,89505.0,89503.0,0.01124]
[1766733833713,0.06919,89513.0,89503.0,0.01124]
[1766733833915,0.06919,89513.0,89503.0,0.0111728]
[1766733834284,0.06919,89513.0,89502.0,0.01117293]
[1766733834416,0.06919,89513.0,89504.0,0.01117268]
[1766733834755,0.06919,89513.0,89498.0,0.01124]
[1766733834910,0.000549,89504.0,89503.0,0.05586404]
[1766733835502,0.06919,89513.0,89504.0,0.01117268]
[1766733835689,0.06919,89513.0,89503.0,0.05586404]
[1766733835690,0.06919,89513.0,89503.0,0.0111728]
[1766733836057,0.06919,89513.0,89502.0,0.01117293]
[1766733836271,0.001099,89502.0,89498.0,0.01124]
[1766733836600,0.39584029,89513.0,89499.0,0.06703944]
[1766733836601,0.06919,89511.0,89499.0,0.06703944]
[1766733836791,0.06919,89511.0,89501.0,0.01117305]
[1766733836995,0.06919,89511.0,89502.0,0.01117293]
[1766733837324,0.01124,89513.0,89500.0,0.01117318]
[1766733837325,0.08043,89513.0,89500.0,0.01117318]
[1766733837486,0.39584029,89512.0,89499.0,0.06703944]
[1766733837664,0.39584029,89512.0,89499.0,0.0111733]
[1766733838304,0.08036181,89511.0,89498.0,0.01124]
[1766733838529,0.08036181,89511.0,89444.0,0.1179]
[1766733838530,0.06703284,89509.0,89488.0,0.01117468]
[1766733838707,0.06703284,89509.0,89494.0,0.01117393]
[1766733838708,0.00055,89498.0,89494.0,0.01117393]
[1766733838882,0.00055,89498.0,89493.0,0.01117405]
[1766733839084,0.01124,89504.0,89490.0,0.01117443]
[1766733839394,0.08043,89504.0,89494.0,0.01117393]
[1766733839589,0.06919,89504.0,89493.0,0.01117405]
[1766733839796,0.01124,89503.0,89492.0,0.01117418]
[1766733840214,0.01124,89503.0,89490.0,0.01117443]
[1766733840423,0.39584029,89502.0,89490.0,0.01117443]
[1766733840618,0.39584029,89502.0,89491.0,0.0111743]
[1766733840819,0.01124,89501.0,89494.0,0.01117393]
[1766733841151,0.01124,89501.0,89477.0,0.01117605]
[1766733841515,0.01124,89507.0,89478.0,0.01117593]
[1766733841737,0.46503029,89520.0,89494.0,0.01117393]
[1766733841940,0.02168463,89519.0,89494.0,0.078283]
[1766733842137,0.01117118,89516.0,89502.0,0.0134079]
[1766733842337,0.01117156,89513.0,89502.0,0.0134079]
[1766733842501,0.05586068,89509.0,89494.0,0.01124]
[1766733842702,0.000549,89502.0,89494.0,0.01124]
[1766733843138,0.000549,89502.0,89477.0,0.09929398]
[1766733843139,0.0111738,89495.0,89473.0,0.01117655]
[1766733843338,0.01117443,89490.0,89484.0,0.01124]
[1766733843603,0.01117555,89481.0,89465.0,0.09929398]
[1766733843804,0.01117555,89481.0,89462.0,0.04468]
[1766733844107,0.58104461,89472.0,89452.0,0.09929398]
[1766733844252,0.01117718,89468.0,89453.0,0.01117905]
[1766733844455,0.0111773,89467.0,89452.0,0.00035853]
[1766733844674,0.01117693,89470.0,89453.0,0.01117905]
[1766733844880,0.01124,89471.0,89452.0,0.00035853]
[1766733845077,0.0224168,89471.0,89458.0,0.01117843]
[1766733845277,0.01124,89471.0,89461.0,0.05589006]
[1766733845456,0.01124,89471.0,89462.0,0.01117793]
[1766733845682,0.01124,89471.0,89461.0,0.06706811]
[1766733845994,0.01124,89470.0,89467.0,0.06706364]
[1766733846144,0.06919,89479.0,89469.0,0.01117705]
[1766733846344,0.01124,89478.0,89471.0,0.0111768]
[1766733846561,0.01124,89477.0,89472.0,0.01117668]
[1766733847096,0.01124,89476.0,89468.0,0.01117718]
[1766733847331,0.01124,89475.0,89467.0,0.0111773]
[1766733847600,0.01117543,89482.0,89454.0,0.22357783]
[1766733847601,0.000549,89468.0,89461.0,0.01117805]
[1766733847945,0.01124,89473.0,89461.0,0.01117805]
[1766733848147,0.01124,89473.0,89463.0,0.0111778]
[1766733848353,0.01124,89473.0,89465.0,0.01117755]
[1766733848999,0.00905294,89473.0,89470.0,0.01117693]
[1766733849204,0.01124,89476.0,89469.0,0.01117705]
[1766733849360,0.01124,89475.0,89473.0,0.01117655]
[1766733849588,0.06919,89486.0,89478.0,0.01117593]
[1766733849874,0.0111743,89491.0,89477.0,0.01117605]
[1766733850124,0.01124,89485.0,89477.0,0.01117605]
[1766733850481,0.01124,89484.0,89477.0,0.01117605]
[1766733850681,0.01117443,89490.0,89476.0,0.01117618]
[1766733850922,0.01124,89489.0,89477.0,0.01117605]
[1766733851122,0.01124,89489.0,89476.0,0.01117618]
[1766733851327,0.01124,89489.0,89477.0,0.01117605]
[1766733851504,0.01117418,89492.0,89478.0,0.01117593]
[1766733851917,0.01124,89491.0,89478.0,0.01117593]
[1766733852319,0.01124,89491.0,89477.0,0.01117605]
[1766733852320,0.01124,89516.0,89490.0,0.0134079]
[1766733852542,0.00025577,89524.0,89504.0,0.01117268]
[1766733852543,0.06919,89514.0,89504.0,0.01117268]
[1766733852745,0.01124,89515.0,89504.0,0.01117268]
[1766733852746,0.01124,89515.0,89506.0,0.01117243]
[1766733852947,0.06919,89520.0,89507.0,0.01228953]
[1766733853105,0.06919,89520.0,89507.0,0.00111722]
[1766733853308,0.000549,89507.0,89497.0,0.01117355]
[1766733853508,0.00010752,89507.0,89494.0,0.01117393]
[1766733853708,0.00010752,89507.0,89496.0,0.01117368]
[1766733853908,0.00055,89496.0,89489.0,0.01117455]
[1766733854179,0.01124,89501.0,89494.0,0.01117393]
[1766733854386,0.08464,89501.0,89486.0,0.01117493]
[1766733854646,0.0734,89498.0,89486.0,0.01117493]
[1766733854891,0.0734,89498.0,89487.0,0.0111748]
[1766733855128,0.0734,89498.0,89490.0,0.01117443]
[1766733855302,0.0734,89498.0,89494.0,0.01117393]
[1766733855521,0.001099,89494.0,89491.0,0.0111743]
[1766733855765,0.0734,89498.0,89490.0,0.01117443]
[1766733855991,0.0734,89498.0,89489.0,0.01117455]
[1766733856402,0.0734,89498.0,89487.0,0.0111748]
[1766733856637,0.000549,89487.0,89484.0,0.01117518]
[1766733856858,0.0734,89498.0,89484.0,0.01117518]
[1766733857091,0.0734,89498.0,89486.0,0.01117493]
[1766733857264,0.0734,89498.0,89485.0,0.01117505]
[1766733857475,0.0734,89498.0,89487.0,0.0111748]
[1766733858056,0.0734,89498.0,89486.0,0.01117493]
[1766733858306,0.0734,89498.0,89485.0,0.01117505]
[1766733858528,0.0734,89498.0,89479.0,0.06711864]
[1766733858529,0.08457368,89496.0,89482.0,0.01117543]
[1766733858726,0.0734,89494.0,89481.0,0.01117555]
[1766733858926,0.08464,89494.0,89482.0,0.01117543]
[1766733859322,0.08464,89494.0,89480.0,0.01117568]
[1766733859463,0.08464,89494.0,89485.0,0.01117505]
[1766733859667,0.08464,89494.0,89483.0,0.0111753]
[1766733859873,0.08464,89494.0,89482.0,0.01117543]
[1766733860075,0.08464,89494.0,89483.0,0.0111753]
[1766733860702,0.0734,89482.0,89468.0,0.05592]
[1766733860932,0.07332561,89482.0,89477.0,0.05588024]
[1766733861109,0.07332561,89482.0,89479.0,0.0111758]
[1766733861368,0.07332561,89482.0,89471.0,0.0111768]
[1766733861501,0.0734,89479.0,89468.0,0.02241718]
[1766733861844,0.0734,89479.0,89465.0,0.01117755]
[1766733861988,0.0734,89479.0,89466.0,0.01117743]
[1766733862738,0.0734,89479.0,89467.0,0.0111773]
[1766733863277,0.01124,89480.0,89475.0,0.0111763]
[1766733863445,0.01124,89480.0,89477.0,0.01117605]
[1766733863646,0.01124,89480.0,89478.0,0.05587965]
[1766733864341,0.0734,89487.0,89480.0,0.01117568]
[1766733864543,0.01124,89486.0,89480.0,0.01117568]
[1766733864747,0.0734,89485.0,89473.0,0.01117655]
[1766733864948,0.08464,89485.0,89473.0,0.06705879]
[1766733865154,0.08464,89485.0,89476.0,0.01117618]
[1766733865333,0.08464,89485.0,89474.0,0.01117643]
[1766733865735,0.08464,89485.0,89475.0,0.0111763]
[1766733865970,0.08464,89485.0,89477.0,0.01117605]
[1766733866296,0.08464,89485.0,89475.0,0.0111763]
[1766733867063,0.08464,89485.0,89473.0,0.01117655]
[1766733867267,0.08464,89485.0,89472.0,0.01117668]
[1766733867472,0.0734,89485.0,89482.0,0.01117543]
[1766733867810,0.01124,89486.0,89483.0,0.0111753]
[1766733867952,0.01124,89486.0,89480.0,0.01117568]
[1766733868139,0.01124,89486.0,89483.0,0.0111753]
[1766733868340,0.01124,89486.0,89481.0,0.01117555]
[1766733868554,0.000549,89481.0,89474.0,0.01117643]
[1766733868753,0.000549,89481.0,89478.0,0.01117593]
[1766733868997,0.000549,89481.0,89476.0,0.01117618]
[1766733869201,0.0734,89484.0,89476.0,0.01117618]
[1766733869367,0.0734,89484.0,89475.0,0.0111763]
[1766733869565,0.0734,89484.0,89474.0,0.01111273]
[1766733869772,0.0734,89484.0,89475.0,0.0111763]
[1766733870171,0.0734,89484.0,89477.0,0.01117605]
[1766733870592,0.0734,89484.0,89478.0,0.01117593]
[1766733870809,0.0734,89484.0,89477.0,0.01117605]
[1766733871777,0.000549,89477.0,89473.0,0.01117655]
[1766733871998,0.000549,89477.0,89474.0,0.01117643]
[1766733872213,0.0734,89484.0,89478.0,0.05587931]
[1766733872406,0.0734,89484.0,89480.0,0.01117568]
[1766733872776,0.0734,89484.0,89479.0,0.0111758]
[1766733873187,0.0734,89484.0,89478.0,0.01117593]
[1766733873387,0.01124,89486.0,89484.0,0.05587591]
[1766733873607,0.01124,89486.0,89483.0,0.0111753]
[1766733874815,0.01124,89492.0,89490.0,0.01117443]
[1766733875018,0.08278,89492.0,89485.0,0.01117505]
[1766733875535,0.08278,89492.0,89482.0,0.01117543]
[1766733875713,0.08278,89492.0,89481.0,0.01117555]
[1766733875913,0.08278,89492.0,89476.0,0.06705647]
[1766733876160,0.01117468,89488.0,89474.0,0.01117643]
[1766733876459,0.08271455,89489.0,89475.0,0.0111763]
[1766733876656,0.07154,89489.0,89476.0,0.01117618]
[1766733876917,0.08271455,89489.0,89474.0,0.01117643]
[1766733877109,0.07154,89489.0,89476.0,0.01117618]
[1766733877248,0.07154,89475.0,89471.0,0.0111768]
[1766733877654,0.07154,89475.0,89472.0,0.01117668]
[1766733878474,0.07154,89475.0,89472.0,0.0670597]
[1766733878651,0.01124,89479.0,89476.0,0.01117618]
[1766733878858,0.030048,89522.0,89485.0,0.01117505]
[1766733879058,0.030048,89522.0,89438.0,0.03991497]
[1766733879059,0.07154,89506.0,89495.0,0.0111738]
[1766733879390,0.07154,89504.0,89492.0,0.01117418]
[1766733879794,0.07154,89504.0,89493.0,0.01117405]
[1766733879957,0.07154,89504.0,89490.0,0.01117443]
[1766733880155,0.07154,89504.0,89491.0,0.0111743]
[1766733880156,0.07164014,89504.0,89491.0,0.0111743]
[1766733880362,0.07154,89503.0,89490.0,0.01117443]
[1766733880564,0.07154,89503.0,89492.0,0.01117418]
[1766733881214,0.07154,89503.0,89491.0,0.0111743]
[1766733881389,0.07154,89503.0,89490.0,0.01117443]
[1766733882163,0.07154,89503.0,89487.0,0.05587341]
[1766733882338,0.07154,89503.0,89488.0,0.01117468]
[1766733882519,0.0827128,89503.0,89489.0,0.01117455]
[1766733882721,0.08271305,89501.0,89487.0,0.0111748]
[1766733882915,0.07154,89499.0,89487.0,0.0111748]
[1766733883153,0.01124,89498.0,89487.0,0.0111748]
[1766733883302,0.08278,89498.0,89486.0,0.01117493]
[1766733883505,0.08278,89498.0,89489.0,0.01117455]
[1766733883915,0.07208,89492.0,89478.0,0.01117593]
[1766733884151,0.07208,89489.0,89478.0,0.06705503]
[1766733884312,0.07208,89489.0,89476.0,0.01117618]
[1766733884509,0.07208,89489.0,89478.0,0.0670509]
[1766733884713,0.07208,89489.0,89479.0,0.0111758]
[1766733885149,0.07208,89489.0,89480.0,0.01117568]
[1766733885657,0.07208,89489.0,89479.0,0.06705428]
[1766733885871,0.07208,89489.0,89475.0,0.06705742]
[1766733886041,0.07208,89489.0,89478.0,0.01117593]
[1766733886249,0.07208,89489.0,89477.0,0.01117605]
[1766733886447,0.07208,89488.0,89472.0,0.01117668]
[1766733886648,0.08325468,89488.0,89472.0,0.06705949]
[1766733886849,0.07208,89486.0,89474.0,0.01117643]
[1766733887032,0.07208,89486.0,89473.0,0.01117655]
[1766733887216,0.07208,89484.0,89468.0,0.01117718]
[1766733887424,0.07208,89479.0,89469.0,0.01117705]
[1766733887779,0.071531,89479.0,89472.0,0.01117668]
[1766733888147,0.071531,89479.0,89474.0,0.01117643]
[1766733888558,0.071531,89479.0,89471.0,0.0111768]
[1766733888950,0.071531,89479.0,89472.0,0.01117668]
[1766733889359,0.071531,89479.0,89471.0,0.0111768]
[1766733889606,0.071531,89479.0,89471.0,0.06706039]
[1766733889974,0.071531,89479.0,89472.0,0.01117668]
[1766733890194,0.071531,89479.0,89470.0,0.01117693]
[1766733890399,0.07088,89492.0,89480.0,0.01117568]
[1766733890573,0.07088,89492.0,89478.0,0.05587965]
[1766733890574,0.07088,89492.0,89481.0,0.01117555]
[1766733890774,0.07088,89492.0,89482.0,0.01117543]
[1766733890996,0.07088,89492.0,89481.0,0.01117555]
[1766733891402,0.01124,89493.0,89476.0,0.01117618]
[1766733891601,0.07088,89490.0,89477.0,0.01117605]
[1766733891771,0.07088,89490.0,89476.0,0.01117618]
[1766733891973,0.07088,89490.0,89477.0,0.01117605]
[1766733892172,0.07088,89490.0,89477.0,0.06705571]
[1766733892391,0.07088,89490.0,89477.0,0.01117605]
[1766733892814,0.07088,89489.0,89478.0,0.01117593]
[1766733893116,0.08212,89489.0,89477.0,0.01117605]
[1766733893331,0.07088,89488.0,89472.0,0.06705967]
[1766733893632,0.08205468,89488.0,89473.0,0.01117655]
[1766733893809,0.07088,89486.0,89472.0,0.01117668]
[1766733894016,0.07088,89482.0,89472.0,0.01117668]
[1766733894226,0.01124,89481.0,89470.0,0.01117693]
[1766733894450,0.08212,89481.0,89472.0,0.01117668]
[1766733894793,0.08212,89481.0,89470.0,0.01117693]
[1766733895001,0.08212,89481.0,89466.0,0.06706434]
[1766733895196,0.07088,89479.0,89466.0,0.01117743]
[1766733895399,0.07088,89479.0,89468.0,0.0558859]
[1766733895603,0.07088,89479.0,89469.0,0.01117705]
[1766733896101,0.07088,89479.0,89468.0,0.06706308]
[1766733896525,0.07088,89479.0,89470.0,0.01117693]
[1766733896721,0.07088,89479.0,89469.0,0.01117705]
[1766733896916,0.07088,89479.0,89470.0,0.01117693]
[1766733897139,0.07088,89479.0,89471.0,0.0111768]
[1766733897362,0.07088,89479.0,89469.0,0.01117705]
[1766733897506,0.07088,89479.0,89470.0,0.01117693]
[1766733897706,0.07088,89479.0,89471.0,0.0111768]
[1766733898523,0.07088,89479.0,89470.0,0.01117693]
[1766733898928,0.07088,89479.0,89468.0,0.01117718]
[1766733899132,0.07088,89479.0,89469.0,0.01117705]
[1766733899330,0.07088,89479.0,89470.0,0.01117693]
[1766733899552,0.07088,89479.0,89463.0,0.05588868]
[1766733899730,0.000549,89463.0,89458.0,0.01117843]
[1766733900000,0.000549,89463.0,89457.0,0.06707116]
[1766733900149,0.08212,89467.0,89457.0,0.01117855]
[1766733900551,0.08212,89467.0,89452.0,0.01124]
[1766733900552,0.08212,89467.0,89462.0,0.01117793]
[1766733900759,0.01124,89469.0,89467.0,0.00055]
[1766733900961,0.01124,89471.0,89469.0,0.01117705]
[1766733901182,0.07088,89482.0,89475.0,0.0111763]
[1766733901356,0.01124,89477.0,89473.0,0.01117655]
[1766733901572,0.01124,89477.0,89474.0,0.01117643]
[1766733901774,0.01124,89477.0,89470.0,0.01117693]
[1766733902151,0.01124,89477.0,89472.0,0.01117668]
[1766733902352,0.01124,89477.0,89473.0,0.01117655]
[1766733902686,0.01069,89477.0,89475.0,0.05588147]
[1766733902942,0.07088,89482.0,89479.0,0.05587903]
[1766733903146,0.07088,89496.0,89474.0,0.05588215]
[1766733903313,0.0134079,89493.0,89490.0,0.01117443]
[1766733903648,0.07088,89496.0,89490.0,0.01117443]
[1766733903649,0.07088,89496.0,89491.0,0.05587154]
[1766733903838,0.01124,89495.0,89493.0,0.01117405]
[1766733904192,0.010691,89495.0,89493.0,0.01117405]
[1766733904391,0.010691,89495.0,89493.0,0.06704422]
[1766733904830,0.07088,89496.0,89493.0,0.06704422]
[1766733905092,0.07088,89509.0,89495.0,0.06704284]
[1766733905227,0.07088,89509.0,89488.0,0.22349212]
[1766733905228,0.07088,89509.0,89499.0,0.05586624]
[1766733905436,0.07088,89509.0,89505.0,0.01117256]
[1766733905628,0.07088,89509.0,89506.0,0.01117243]
[1766733905854,0.01124,89508.0,89506.0,0.01117243]
[1766733906016,0.07088,89518.0,89513.0,0.01117156]
[1766733906255,0.07098016,89518.0,89509.0,0.05586005]
[1766733906445,0.000549,89513.0,89508.0,0.01117218]
[1766733906652,0.07098016,89518.0,89509.0,0.0670323]
[1766733907007,0.07098016,89518.0,89507.0,0.01117231]
[1766733907327,0.07098016,89518.0,89505.0,0.06703498]
[1766733907536,0.0134079,89515.0,89504.0,0.01117268]
[1766733907739,0.0842879,89515.0,89505.0,0.01117256]
[1766733908347,0.0842879,89515.0,89504.0,0.0670356]
[1766733908348,0.0842879,89515.0,89506.0,0.01117243]
[1766733908785,0.0842879,89515.0,89505.0,0.01117256]
[1766733908989,0.0842879,89515.0,89503.0,0.0111728]
[1766733909168,0.0842879,89515.0,89504.0,0.06703569]
[1766733909470,0.0842879,89515.0,89506.0,0.01117243]
[1766733910044,0.0842879,89515.0,89508.0,0.01117218]
[1766733910494,0.0842879,89515.0,89509.0,0.01117206]
[1766733911089,0.0134079,89515.0,89509.0,0.01117206]
[1766733911310,0.01142595,89524.0,89521.0,0.01117056]
[1766733911311,1e-08,89524.0,89521.0,0.01117056]
[1766733911517,1e-08,89524.0,89521.0,0.01228748]
[1766733911741,1e-08,89524.0,89521.0,0.01117056]
[1766733912145,1e-08,89524.0,89520.0,0.01117068]
[1766733912482,0.03488981,89526.0,89520.0,0.06702374]
[1766733912762,0.03488981,89526.0,89521.0,0.01117056]
[1766733913338,0.000549,89521.0,89500.0,0.22346137]
[1766733913635,0.071429,89521.0,89515.0,0.01117131]
[1766733913935,0.07088,89521.0,89515.0,0.01117131]
[1766733914485,0.07088,89521.0,89518.0,0.01117093]
[1766733915088,0.000549,89518.0,89514.0,0.01117143]
[1766733915529,0.01124,89524.0,89518.0,0.01117093]
[1766733915927,0.01124,89524.0,89514.0,0.01117143]
[1766733916128,0.08307,89524.0,89512.0,0.0670299]
[1766733916310,0.08307,89524.0,89509.0,0.00010016]
[1766733916311,0.000549,89512.0,89509.0,0.01127222]
[1766733916510,0.02241018,89524.0,89511.0,0.01117181]
[1766733916511,0.07183,89519.0,89511.0,0.01117181]
[1766733916706,0.07183,89519.0,89515.0,0.05585616]
[1766733916956,0.07183,89519.0,89516.0,0.01117118]
[1766733918230,0.07183,89519.0,89517.0,0.05585531]
[1766733918431,0.07183,89519.0,89516.0,0.01117118]
[1766733918630,0.07183,89519.0,89516.0,0.06702651]
[1766733918886,0.07183,89519.0,89516.0,0.01117118]
[1766733919102,0.03488981,89526.0,89523.0,0.01117031]
[1766733919301,0.0001,89560.0,89531.0,3.4528]
[1766733919498,0.0001,89560.0,89546.0,0.05583704]
[1766733919701,0.07193,89560.0,89547.0,0.01124]
[1766733919899,0.07193,89560.0,89547.0,0.02240731]
[1766733920147,0.01116582,89559.0,89547.0,0.01124]
[1766733920262,0.01116582,89559.0,89524.0,0.2034079]
[1766733920263,0.0111642,89572.0,89550.0,0.01116694]
[1766733920462,0.08299457,89569.0,89542.0,0.23459637]
[1766733920662,0.01116544,89562.0,89544.0,0.01116769]
[1766733920972,0.05583062,89557.0,89536.0,0.01116869]
[1766733921247,0.05583062,89557.0,89534.0,0.02240894]
[1766733921248,0.01116482,89567.0,89546.0,0.01116744]
[1766733921377,0.01116607,89557.0,89545.0,0.0134079]
[1766733921575,0.02240619,89556.0,89545.0,0.0134079]
[1766733921787,0.01116719,89548.0,89545.0,0.0134079]
[1766733921983,0.01124,89556.0,89542.0,0.0134079]
[1766733921984,0.000549,89545.0,89542.0,0.0134079]
[1766733922393,0.01116682,89551.0,89542.0,0.0134079]
[1766733922825,0.39598366,89552.0,89530.0,0.0134079]
[1766733922994,0.07183,89551.0,89533.0,0.01116906]
[1766733923195,0.01116594,89558.0,89535.0,0.05584399]
[1766733923196,0.01124,89550.0,89535.0,0.05584399]
[1766733923422,0.01116657,89553.0,89544.0,0.0134079]
[1766733923627,0.01116644,89554.0,89488.0,0.04468]
[1766733923628,0.000549,89544.0,89488.0,0.04468]
[1766733923853,0.01117206,89509.0,89489.0,0.01124]
[1766733923980,0.08300206,89509.0,89491.0,0.0111743]
[1766733924180,0.01117243,89506.0,89489.0,0.01124]
[1766733924381,0.08300206,89509.0,89490.0,0.01124]
[1766733924382,0.01117368,89496.0,89490.0,0.01124]
[1766733924635,0.01117455,89489.0,89477.0,0.04468]
[1766733924801,0.06704854,89488.0,89478.0,0.01124]
[1766733925003,0.0111758,89479.0,89478.0,0.00035853]
[1766733925220,0.13887989,89486.0,89478.0,0.00035853]